bitfinex/quotes_SOLUSD_20250514
["timestamp","ask_amount","ask_price","bid_price","bid_amount"]
[1747264751979,67.00829936,175.77,175.7,29.87592025]
[1747264752180,19.9123855,175.77,175.75,29.87592025]
[1747264752475,19.9123855,175.77,175.76,29.87592025]
[1747264752679,5.689253,175.77,175.76,29.87592025]
[1747264752878,5.689253,175.77,175.76,59.7518405]
[1747264753062,1.42208683,175.84,175.76,59.7518405]
[1747264753274,62.69547688,175.92,175.76,59.7518405]
[1747264753275,19.90580566,175.83,175.76,29.87592025]
[1747264753578,19.90580566,175.83,175.82,29.87592025]
[1747264754164,5.6873116,175.83,175.82,29.87592025]
[1747264755382,19.90559061,175.83,175.82,29.87592025]
[1747264756461,50.08951778,175.85,175.8,29.87592025]
[1747264756882,18.64964886,175.83,175.75,20.32]
[1747264757189,20.07177113,175.83,175.8,29.87592025]
[1747264758613,5.68763508,175.82,175.76,29.87592025]
[1747264758901,19.90672278,175.82,175.81,29.87592025]
[1747264759689,26.0,175.81,175.73,1.6215]
[1747264759987,26.0,175.81,175.77,29.87592025]
[1747264760562,69.85684775,175.8,175.75,29.87592025]
[1747264760763,68.42233819,175.8,175.76,29.87592025]
[1747264762804,19.90898747,175.8,175.79,29.87592025]
[1747264763360,19.90898747,175.8,175.79,20.24401003]
[1747264763874,5.68828213,175.8,175.79,20.24401003]
[1747264764877,14.21872777,175.83,175.79,20.24401003]
[1747264765203,14.21872777,175.83,175.76,66.40401003]
[1747264765204,14.21872777,175.83,175.82,20.24401003]
[1747264767306,39.97248843,175.87,175.82,20.24401003]
[1747264767500,39.97248843,175.87,175.84,20.24401003]
[1747264768078,39.97248843,175.87,175.86,20.24401003]
[1747264768079,5.68601808,175.87,175.86,20.24401003]
[1747264769292,19.89797955,175.9,175.86,20.24401003]
[1747264769604,19.89797955,175.9,175.84,20.24401003]
[1747264769605,19.89797955,175.9,175.89,20.24401003]
[1747264771489,14.21293123,175.9,175.88,20.24401003]
[1747264772206,14.21293123,175.9,175.89,20.24401003]
[1747264773078,14.21293123,175.9,175.83,1.5193]
[1747264773282,14.21293123,175.9,175.86,20.24401003]
[1747264774306,14.21293123,175.9,175.83,1.5193]
[1747264774307,20.07116536,175.89,175.83,1.5193]
[1747264774517,40.31517539,175.89,175.84,20.24401003]
[1747264774887,19.89993176,175.88,175.84,20.24401003]
[1747264775902,40.31539649,175.87,175.81,20.22]
[1747264776099,20.24401003,175.83,175.78,21.79291003]
[1747264776301,21.66607514,175.84,175.79,20.24401003]
[1747264776483,26.0,175.85,175.81,20.24401003]
[1747264776484,27.42192667,175.85,175.81,20.24401003]
[1747264777002,5.68698817,175.84,175.81,20.24401003]
[1747264777214,18.64964886,175.83,175.79,20.24401003]
[1747264777397,40.31563023,175.83,175.76,20.22]
[1747264777587,18.64964886,175.81,175.77,20.24401003]
[1747264777921,20.07193229,175.81,175.77,20.24401003]
[1747264779016,88.3304437,175.8,175.76,20.22]
[1747264779207,88.3304437,175.8,175.73,20.24401003]
[1747264779208,20.24401003,175.78,175.73,20.24401003]
[1747264779514,149.50004702,175.8,175.77,20.24401003]
[1747264779699,149.50004702,175.8,175.7,20.22]
[1747264779888,169.74405705,175.8,175.75,20.24401003]
[1747264780087,1.42240683,175.79,175.75,20.24401003]
[1747264781018,5.68892934,175.78,175.75,20.24401003]
[1747264781321,19.91125269,175.78,175.77,20.24401003]
[1747264782924,14.22232335,175.78,175.77,20.24401003]
[1747264783727,14.22232335,175.78,175.71,26.0]
[1747264783891,14.22232335,175.78,175.76,20.24401003]
[1747264784093,14.22232335,175.78,175.75,20.24401003]
[1747264784419,14.22232335,175.78,175.7,20.22]
[1747264784420,14.22232335,175.78,175.74,20.24401003]
[1747264784611,14.22232335,175.78,175.76,20.24401003]
[1747264784990,19.91125269,175.78,175.75,20.24401003]
[1747264785602,19.91125269,175.78,175.77,20.24401003]
[1747264786013,5.68892934,175.78,175.77,20.24401003]
[1747264787112,14.2201403,175.81,175.77,20.24401003]
[1747264787312,14.2201403,175.81,175.8,20.24401003]
[1747264788119,14.2201403,175.81,175.79,20.24401003]
[1747264788296,14.2201403,175.81,175.8,20.24401003]
[1747264790798,5.6873116,175.83,175.8,20.24401003]
[1747264790997,5.6873116,175.83,175.82,20.24401003]
[1747264791197,19.90559061,175.83,175.82,20.24401003]
[1747264793019,14.21827901,175.83,175.82,20.24401003]
[1747264793496,14.21827901,175.83,175.78,1.5091]
[1747264793817,14.21827901,175.83,175.8,20.18049376]
[1747264794304,14.21827901,175.83,175.81,20.24401003]
[1747264794512,14.21827901,175.83,175.8,20.24401003]
[1747264794711,14.21827901,175.83,175.79,20.24401003]
[1747264794912,19.90559061,175.83,175.79,20.24401003]
[1747264795587,19.90559061,175.83,175.8,20.24401003]
[1747264796434,19.90559061,175.83,175.82,20.24401003]
[1747264796803,19.90559061,175.83,175.81,20.24401003]
[1747264797736,19.90559061,175.83,175.8,20.24401003]
[1747264797901,70.00815308,175.83,175.78,20.24401003]
[1747264798819,49.76414305,175.83,175.79,20.24401003]
[1747264799211,48.34214864,175.83,175.8,20.24401003]
[1747264799715,19.90559061,175.83,175.82,20.24401003]
[1747264800504,5.6873116,175.83,175.82,41.62651003]
[1747264800707,5.6873116,175.83,175.82,61.87052006]
[1747264800905,5.6873116,175.83,175.82,41.62651003]
[1747264801103,19.89880037,175.89,175.82,41.62651003]
[1747264801326,19.89880037,175.89,175.87,20.24401003]
[1747264802029,48.32565806,175.89,175.82,21.3825]
[1747264802323,48.32565806,175.89,175.86,20.24401003]
[1747264802696,48.32565806,175.89,175.87,20.24401003]
[1747264802895,19.89880037,175.89,175.88,20.24401003]
[1747264803101,48.31810453,175.92,175.88,20.24401003]
[1747264803319,48.31810453,175.92,175.84,20.24401003]
[1747264803320,48.31810453,175.92,175.91,20.24401003]
[1747264803916,19.895407,175.92,175.91,20.24401003]
[1747264804218,5.684402,175.92,175.89,19.82]
[1747264804421,5.684402,175.92,175.91,20.24401003]
[1747264805334,14.20865504,175.95,175.91,20.24401003]
[1747264805513,14.20865504,175.95,175.94,20.24401003]
[1747264805719,14.20865504,175.95,175.93,20.24401003]
[1747264806328,14.20865504,175.95,175.9,20.24401003]
[1747264806329,34.45266507,175.95,175.9,20.24401003]
[1747264806506,14.20865504,175.95,175.91,20.24401003]
[1747264807125,40.31483697,175.94,175.89,40.06401003]
[1747264807315,19.89427612,175.93,175.89,40.06401003]
[1747264808850,19.89427612,175.93,175.89,20.24401003]
[1747264809918,19.89427612,175.93,175.92,20.24401003]
[1747264810540,5.68407889,175.93,175.92,20.24401003]
[1747264811351,28.41393419,175.97,175.92,40.48802006]
[1747264811552,19.8874936,175.99,175.96,20.24401003]
[1747264811718,19.8874936,175.99,175.97,20.24401003]
[1747264811923,19.8874936,175.99,175.96,20.24401003]
[1747264814136,19.8874936,175.99,175.97,20.24401003]
[1747264814320,19.8874936,175.99,175.92,20.24401003]
[1747264814321,19.8874936,175.99,175.98,20.24401003]
[1747264815416,19.8874936,175.99,175.92,20.24401003]
[1747264815618,19.8874936,175.99,175.97,20.24401003]
[1747264815818,40.13150363,175.99,175.95,20.24401003]
[1747264816011,66.31445176,175.98,175.91,21.4305]
[1747264816212,38.89365889,175.96,175.91,40.06401003]
[1747264816412,1.42113312,175.95,175.91,40.06401003]
[1747264816813,20.07075967,175.96,175.92,20.24401003]
[1747264817234,20.24401003,175.95,175.91,40.06401003]
[1747264817537,38.89365889,175.93,175.87,20.24401003]
[1747264817706,18.64964886,175.93,175.89,20.24401003]
[1747264818030,82.5,175.94,175.91,20.24401003]
[1747264818234,19.89314538,175.94,175.91,20.24401003]
[1747264818813,38.89365889,175.93,175.88,20.24401003]
[1747264819035,20.24401003,175.92,175.87,20.24401003]
[1747264819434,1.42140384,175.91,175.87,20.24401003]
[1747264819820,21.66541387,175.91,175.83,19.8]
[1747264820138,5.68569479,175.88,175.83,19.8]
[1747264820322,5.68569479,175.88,175.85,20.24401003]
[1747264820527,19.89993176,175.88,175.85,20.24401003]
[1747264820843,19.89993176,175.88,175.83,19.8]
[1747264820844,18.64964886,175.87,175.83,20.24401003]
[1747264821020,18.64964886,175.87,175.8,19.58]
[1747264821021,20.24401003,175.85,175.8,39.82401003]
[1747264821348,20.24401003,175.86,175.81,20.24401003]
[1747264821519,40.31528854,175.87,175.82,20.24401003]
[1747264822030,20.24401003,175.85,175.8,39.82401003]
[1747264822232,5.68666477,175.85,175.82,20.24401003]
[1747264822410,27.35251071,175.85,175.8,20.24401003]
[1747264822606,38.89365889,175.84,175.79,20.24401003]
[1747264823948,18.64964886,175.84,175.8,20.24401003]
[1747264824241,14.21666192,175.85,175.82,20.24401003]
[1747264824432,14.21666192,175.85,175.77,1.5496]
[1747264824433,14.21666192,175.85,175.83,20.24401003]
[1747264824826,5.6863414,175.86,175.84,20.24401003]
[1747264825119,5.6863414,175.86,175.85,20.24401003]
[1747264825334,5.68504832,175.9,175.85,20.24401003]
[1747264825525,5.68504832,175.9,175.89,20.24401003]
[1747264825863,19.89766912,175.9,175.88,20.24401003]
[1747264826336,14.2126208,175.9,175.88,20.24401003]
[1747264826739,5.684402,175.92,175.89,20.24401003]
[1747264827328,5.684402,175.92,175.9,20.24401003]
[1747264827832,5.684402,175.92,175.91,20.24401003]
[1747264828454,19.89467025,175.93,175.9,20.24401003]
[1747264830054,20.24401003,175.92,175.86,1.6384]
[1747264830355,41.5598498,175.93,175.88,20.24401003]
[1747264830744,21.31583977,175.93,175.89,20.24401003]
[1747264831755,21.31583977,175.93,175.9,20.24401003]
[1747264831972,14.20826107,175.96,175.92,20.24401003]
[1747264832159,14.20826107,175.96,175.86,1.6384]
[1747264832160,19.89137086,175.96,175.93,20.24401003]
[1747264832665,19.89137086,175.96,175.94,20.24401003]
[1747264832961,14.20826107,175.96,175.94,20.24401003]
[1747264833156,5.68246391,175.98,175.95,20.24401003]
[1747264833374,19.8886237,175.98,175.94,20.24401003]
[1747264833975,19.8886237,175.98,175.89,19.5]
[1747264834139,19.8886237,175.98,175.95,20.24401003]
[1747264834671,19.8886237,175.98,175.94,20.24401003]
[1747264835166,19.8886237,175.98,175.95,20.24401003]
[1747264835338,19.8886237,175.98,175.96,20.24401003]
[1747264837169,19.8886237,175.98,175.95,20.24401003]
[1747264837735,19.8886237,175.98,175.89,19.5]
[1747264837950,40.13263373,175.98,175.93,20.24401003]
[1747264838264,41.55352639,175.98,175.93,20.24401003]
[1747264838647,21.30951636,175.98,175.93,20.24401003]
[1747264838952,39.03582046,175.97,175.88,19.58]
[1747264839153,19.89427612,175.93,175.89,20.24401003]
[1747264839686,19.89427612,175.93,175.91,20.24401003]
[1747264840777,5.68407889,175.93,175.92,20.24401003]
[1747264841280,5.68407889,175.93,175.86,7.32459266]
[1747264841281,19.89201477,175.95,175.91,20.24401003]
[1747264841779,19.89201477,175.95,175.86,1.6384]
[1747264841780,20.24401003,175.93,175.88,20.24401003]
[1747264842575,40.3147652,175.94,175.88,20.24401003]
[1747264842948,18.64964886,175.92,175.86,1.6384]
[1747264843248,18.64964886,175.92,175.88,20.24401003]
[1747264843249,19.89766912,175.9,175.88,20.24401003]
[1747264843580,5.68504832,175.9,175.89,20.24401003]
[1747264843762,5.68470665,175.92,175.89,20.24401003]
[1747264844089,5.68470665,175.92,175.91,20.24401003]
[1747264845282,14.20974158,175.94,175.91,20.24401003]
[1747264846986,20.24401003,175.92,175.83,201.94]
[1747264847280,40.31502416,175.91,175.86,20.24401003]
[1747264847684,20.07101413,175.91,175.87,20.24401003]
[1747264849186,5.68504832,175.9,175.87,20.24401003]
[1747264850067,5.68504832,175.9,175.89,20.24401003]
[1747264851371,14.21253936,175.91,175.89,20.24401003]
[1747264851683,14.21253936,175.91,175.9,20.24401003]
[1747264851886,5.68407889,175.93,175.9,20.24401003]
[1747264852057,5.68407889,175.93,175.84,20.24401003]
[1747264852058,5.68407889,175.93,175.91,20.24401003]
[1747264854090,19.89427612,175.93,175.9,20.24401003]
[1747264854278,19.89427612,175.93,175.89,20.24401003]
[1747264855191,41.55948403,175.93,175.88,20.24401003]
[1747264855784,40.13828615,175.93,175.88,20.24401003]
[1747264855988,19.89427612,175.93,175.88,20.24401003]
[1747264856292,20.24401003,175.91,175.86,20.24401003]
[1747264857097,121.39365889,175.92,175.87,20.24401003]
[1747264857873,21.31799911,175.91,175.87,20.24401003]
[1747264858202,20.24401003,175.88,175.83,19.58]
[1747264858491,20.24401003,175.87,175.82,20.24401003]
[1747264858693,38.89365889,175.88,175.81,1.5217]
[1747264858865,38.89365889,175.88,175.83,20.24401003]
[1747264860008,38.89365889,175.88,175.78,238.5214]
[1747264860009,41.56679696,175.87,175.82,20.24401003]
[1747264860178,20.24401003,175.86,175.81,20.24401003]
[1747264860376,69.99688736,175.87,175.82,20.24401003]
[1747264860679,21.32278693,175.87,175.83,20.24401003]
[1747264860872,20.24401003,175.86,175.81,20.24401003]
[1747264861081,20.24401003,175.86,175.78,232.08]
[1747264861082,26.0,175.82,175.78,39.56401003]
[1747264861274,46.24401003,175.82,175.78,19.32]
[1747264861473,21.66623302,175.81,175.76,20.24401003]
[1747264862074,19.90898747,175.8,175.76,20.24401003]
[1747264862275,40.1529975,175.8,175.75,20.24401003]
[1747264862476,20.24401003,175.79,175.72,31.11269078]
[1747264862706,19.90898747,175.8,175.72,31.11269078]
[1747264862707,5.68828213,175.8,175.78,20.24401003]
[1747264863005,5.68828213,175.8,175.79,20.24401003]
[1747264863177,5.68763508,175.82,175.79,20.24401003]
[1747264863379,5.68763508,175.82,175.76,39.58401003]
[1747264863796,5.68763508,175.82,175.8,20.24401003]
[1747264864000,5.68828213,175.8,175.72,11.79269078]
[1747264864214,20.24401003,175.77,175.72,11.79269078]
[1747264864507,46.24401003,175.78,175.73,20.24401003]
[1747264864704,46.24401003,175.78,175.69,19.32]
[1747264864882,46.24401003,175.78,175.73,20.24401003]
[1747264865077,26.0,175.78,175.74,20.24401003]
[1747264865283,26.0,175.78,175.77,20.24401003]
[1747264865511,26.0,175.78,175.75,20.24401003]
[1747264866224,5.689253,175.77,175.76,20.24401003]
[1747264866561,5.689253,175.77,175.75,20.24401003]
[1747264867181,40.15639553,175.77,175.72,20.24401003]
[1747264867382,19.9123855,175.77,175.73,20.24401003]
[1747264868223,41.57894697,175.77,175.72,20.24401003]
[1747264869274,19.9123855,175.77,175.74,20.24401003]
[1747264869497,26.0,175.76,175.75,20.24401003]
[1747264869896,5.689253,175.77,175.75,20.24401003]
[1747264870303,19.91182364,175.78,175.75,20.24401003]
[1747264872000,5.68892934,175.78,175.77,20.24401003]
[1747264872199,5.68828213,175.8,175.77,20.24401003]
[1747264872429,70.01655381,175.8,175.75,20.24401003]
[1747264873232,20.24401003,175.78,175.73,20.24401003]
[1747264873436,26.0,175.77,175.73,20.24401003]
[1747264874526,5.68957669,175.76,175.73,20.24401003]
[1747264875229,5.68957669,175.76,175.75,20.24401003]
[1747264875432,19.91351842,175.76,175.7,19.32]
[1747264875608,19.91351842,175.76,175.75,20.24401003]
[1747264875808,19.91351842,175.76,175.74,20.24401003]
[1747264876415,38.89365889,175.75,175.7,20.24401003]
[1747264876630,38.89365889,175.73,175.68,20.24401003]
[1747264876926,38.89365889,175.73,175.65,19.34]
[1747264876927,46.24401003,175.71,175.65,19.34]
[1747264877133,47.66712076,175.71,175.66,20.24401003]
[1747264877303,46.24401003,175.7,175.65,39.58401003]
[1747264878033,1.42311452,175.69,175.65,20.24401003]
[1747264878502,5.69216757,175.68,175.65,20.24401003]
[1747264879222,5.69216757,175.68,175.66,20.24401003]
[1747264879508,41.58975689,175.68,175.62,20.24401003]
[1747264879710,20.24401003,175.67,175.62,20.24401003]
[1747264880043,20.24401003,175.65,175.6,39.58401003]
[1747264880205,40.31703145,175.66,175.61,20.24401003]
[1747264880702,19.92598917,175.65,175.62,20.24401003]
[1747264880903,19.92598917,175.65,175.6,19.34]
[1747264880904,19.92598917,175.65,175.63,20.24401003]
[1747264882137,19.92598917,175.65,175.62,20.24401003]
[1747264882352,19.92598917,175.65,175.6,19.34]
[1747264882629,40.1699992,175.65,175.6,20.24401003]
[1747264882835,19.92598917,175.65,175.62,20.24401003]
[1747264883010,19.92598917,175.65,175.63,20.24401003]
[1747264883334,19.92598917,175.65,175.62,20.24401003]
[1747264883636,40.1699992,175.65,175.6,20.24401003]
[1747264884202,19.92598917,175.65,175.61,20.24401003]
[1747264884401,40.1699992,175.65,175.6,20.24401003]
[1747264884707,20.24401003,175.63,175.58,20.24401003]
[1747264884929,19.92939299,175.62,175.59,20.24401003]
[1747264885307,19.92939299,175.62,175.58,20.24401003]
[1747264885509,20.24401003,175.61,175.56,20.24401003]
[1747264886823,19.93166287,175.6,175.56,20.24401003]
[1747264887503,19.93166287,175.6,175.57,20.24401003]
[1747264887744,19.93166287,175.6,175.58,20.24401003]
[1747264888437,5.69476082,175.6,175.59,20.24401003]
[1747264888939,5.69411228,175.62,175.59,20.24401003]
[1747264889516,19.92939299,175.62,175.55,19.24]
[1747264889837,19.92939299,175.62,175.56,20.24401003]
[1747264889838,20.24401003,175.61,175.56,20.24401003]
[1747264890151,20.24401003,175.61,175.51,156.28]
[1747264890152,20.24401003,175.57,175.51,137.0]
[1747264890312,26.0,175.58,175.5,20.24401003]
[1747264890313,20.24401003,175.55,175.5,20.24401003]
[1747264890636,21.66822301,175.56,175.51,20.24401003]
[1747264890808,21.66822301,175.56,175.48,19.26]
[1747264890809,18.64964886,175.56,175.52,20.24401003]
[1747264891005,5.69638279,175.55,175.52,20.24401003]
[1747264895051,5.69638279,175.55,175.48,19.26]
[1747264895251,5.69638279,175.55,175.53,20.24401003]
[1747264895622,5.69638279,175.55,175.51,20.24401003]
[1747264896011,18.64964886,175.51,175.44,213.06]
[1747264896213,20.24401003,175.48,175.43,19.26]
[1747264896414,20.24401003,175.48,175.43,39.50401003]
[1747264897148,5.69897988,175.47,175.43,39.50401003]
[1747264897714,5.69897988,175.47,175.41,20.24401003]
[1747264897715,20.24401003,175.46,175.41,20.24401003]
[1747264897934,20.24401003,175.46,175.38,19.26]
[1747264897935,20.24401003,175.42,175.38,19.26]
[1747264898346,20.24401003,175.42,175.34,6.2149]
[1747264898551,18.64964886,175.4,175.33,234.0321]
[1747264898851,20.24401003,175.41,175.33,254.27611003]
[1747264898852,38.89365889,175.39,175.33,254.27611003]
[1747264899028,38.89365889,175.39,175.27,1.6121]
[1747264899234,5.70190443,175.38,175.33,20.24401003]
[1747264899845,5.70190443,175.38,175.34,20.24401003]
[1747264900245,5.70190443,175.38,175.29,24.96473174]
[1747264900246,5.70190443,175.38,175.36,20.24401003]
[1747264900432,5.70190443,175.38,175.29,24.96473174]
[1747264904726,20.24401003,175.42,175.37,20.24401003]
[1747264905323,5.70092925,175.41,175.37,20.24401003]
[1747264906951,5.70067213,175.42,175.39,20.24401003]
[1747264907157,5.70067213,175.42,175.4,20.24401003]
[1747264907461,38.89365889,175.43,175.38,20.24401003]
[1747264907627,18.64964886,175.43,175.39,20.24401003]
[1747264908235,40.19385043,175.44,175.39,20.24401003]
[1747264910265,14.249886,175.44,175.4,20.24401003]
[1747264911157,20.24401003,175.41,175.35,19.28]
[1747264911329,40.31886402,175.43,175.37,20.24401003]
[1747264911531,38.89365889,175.43,175.38,20.24401003]
[1747264911746,20.24401003,175.42,175.37,20.24401003]
[1747264912139,20.24401003,175.4,175.35,19.28]
[1747264912366,5.70157933,175.39,175.35,19.28]
[1747264912661,20.24401003,175.38,175.33,20.24401003]
[1747264913145,41.62512669,175.39,175.34,20.24401003]
[1747264913939,41.62512669,175.39,175.31,1.5649]
[1747264913940,20.24401003,175.37,175.31,1.5649]
[1747264914139,20.24401003,175.37,175.3,39.40401003]
[1747264914140,20.24401003,175.35,175.3,39.40401003]
[1747264914366,5.7032052,175.34,175.3,39.40401003]
[1747264914661,5.7032052,175.34,175.31,20.24401003]
[1747264914834,19.9612182,175.34,175.3,39.40401003]
[1747264915034,19.9612182,175.34,175.26,1.5963]
[1747264915234,19.9612182,175.34,175.29,20.24401003]
[1747264915947,5.70255474,175.36,175.33,20.24401003]
[1747264916167,5.70157933,175.39,175.35,20.24401003]
[1747264916370,5.70092925,175.41,175.37,20.24401003]
[1747264917283,5.70092925,175.41,175.38,20.24401003]
[1747264917491,5.70092925,175.41,175.39,20.24401003]
[1747264918358,19.95140574,175.43,175.39,20.24401003]
[1747264918558,19.95140574,175.43,175.38,20.24401003]
[1747264918779,20.24401003,175.42,175.37,20.24401003]
[1747264919107,19.95140574,175.43,175.38,20.24401003]
[1747264919681,41.6207724,175.43,175.37,20.24401003]
[1747264920189,41.6207724,175.43,175.31,19.18]
[1747264920190,20.24401003,175.38,175.31,19.18]
[1747264920372,19.95780349,175.37,175.31,19.18]
[1747264920575,40.20181352,175.37,175.31,39.42401003]
[1747264920772,20.24401003,175.35,175.29,20.24401003]
[1747264920966,20.24401003,175.33,175.28,20.24401003]
[1747264921171,64.89365889,175.36,175.3,20.24401003]
[1747264921491,64.89365889,175.36,175.26,20.8097]
[1747264921492,20.24401003,175.33,175.26,20.8097]
[1747264921669,20.24401003,175.34,175.29,20.24401003]
[1747264922791,5.70353048,175.33,175.29,20.24401003]
[1747264923990,5.70353048,175.33,175.26,20.8097]
[1747264924187,5.70353048,175.33,175.29,20.24401003]
[1747264924590,40.20636672,175.33,175.26,20.8097]
[1747264924897,40.20636672,175.33,175.29,20.24401003]
[1747264925084,19.96235669,175.33,175.28,20.24401003]
[1747264925391,20.24401003,175.29,175.26,19.18]
[1747264925592,20.24401003,175.28,175.23,20.24401003]
[1747264925795,20.24401003,175.27,175.22,1.5866]
[1747264925986,21.67049541,175.27,175.22,20.24401003]
[1747264926169,20.24401003,175.28,175.18,46.7666]
[1747264926368,20.24401003,175.27,175.22,20.24401003]
[1747264926565,38.89365889,175.28,175.23,20.24401003]
[1747264926798,25.94949299,175.27,175.22,20.24401003]
[1747264927373,40.21320041,175.27,175.22,20.24401003]
[1747264927575,20.24401003,175.24,175.14,19.18]
[1747264927771,20.24401003,175.23,175.18,20.24401003]
[1747264927989,20.24401003,175.23,175.14,19.18]
[1747264927990,5.70548296,175.27,175.22,20.24401003]
[1747264928173,6.4796,175.34,175.26,20.24401003]
[1747264928374,26.72361003,175.34,175.22,20.8609]
[1747264928579,38.89365889,175.33,175.28,20.24401003]
[1747264928782,38.89365889,175.31,175.22,1.5609]
[1747264928983,18.64964886,175.31,175.27,20.24401003]
[1747264929383,51.94754051,175.33,175.28,20.24401003]
[1747264929595,5.70353048,175.33,175.31,20.24401003]
[1747264929789,19.96235669,175.33,175.29,20.24401003]
[1747264929974,19.96235669,175.33,175.3,20.24401003]
[1747264930295,19.96235669,175.33,175.24,26.0]
[1747264930480,38.89365889,175.32,175.22,1.5609]
[1747264930681,5.70418116,175.31,175.29,20.24401003]
[1747264931300,5.70418116,175.31,175.28,20.24401003]
[1747264931473,5.70418116,175.31,175.22,27.5609]
[1747264931474,38.89365889,175.3,175.22,1.5609]
[1747264931678,18.64964886,175.3,175.26,20.24401003]
[1747264932177,31.70418116,175.31,175.28,20.24401003]
[1747264932500,5.70418116,175.31,175.22,27.5609]
[1747264932803,0.14216157,175.3,175.22,1.5609]
[1747264932989,18.64964886,175.29,175.25,20.24401003]
[1747264933302,18.64964886,175.29,175.22,1.5609]
[1747264933484,5.7038558,175.32,175.28,20.24401003]
[1747264933682,5.7038558,175.32,175.31,20.24401003]
[1747264934132,5.7038558,175.32,175.3,20.24401003]
[1747264934275,5.7038558,175.32,175.29,20.24401003]
[1747264934603,41.63360342,175.32,175.22,1.5609]
[1747264934806,40.20750534,175.32,175.27,20.24401003]
[1747264935004,19.96349531,175.32,175.28,20.24401003]
[1747264935193,5.7038558,175.32,175.3,20.24401003]
[1747264936381,40.20522823,175.34,175.29,20.24401003]
[1747264936575,40.20522823,175.34,175.27,20.24401003]
[1747264936576,20.24401003,175.32,175.27,20.24401003]
[1747264936899,20.24401003,175.29,175.22,1.5609]
[1747264937107,20.24401003,175.29,175.25,20.24401003]
[1747264938181,40.32014178,175.3,175.25,20.24401003]
[1747264938489,19.96691197,175.29,175.25,20.24401003]
[1747264938684,5.70483199,175.29,175.27,20.24401003]
[1747264938891,82.5,175.39,175.28,40.48802006]
[1747264939112,40.20181352,175.37,175.28,20.24401003]
[1747264939400,40.20181352,175.37,175.27,19.18]
[1747264939602,40.20181352,175.37,175.32,20.24401003]
[1747264939990,64.89365889,175.33,175.17,6.3349]
[1747264940189,20.24401003,175.26,175.17,53.1345]
[1747264940391,40.21547935,175.25,175.2,20.24401003]
[1747264940785,5.70613409,175.25,175.22,20.24401003]
[1747264940990,5.70613409,175.25,175.2,20.24401003]
[1747264941193,5.70613409,175.25,175.23,20.24401003]
[1747264941596,19.97146932,175.25,175.17,27.1345]
[1747264941987,19.97146932,175.25,175.21,20.24401003]
[1747264942187,40.21547935,175.25,175.2,20.24401003]
[1747264942579,19.97146932,175.25,175.21,20.24401003]
[1747264943386,40.21547935,175.25,175.2,20.24401003]
[1747264943810,40.21547935,175.25,175.17,20.7996]
[1747264943811,19.97146932,175.25,175.21,20.24401003]
[1747264944014,5.70613409,175.25,175.17,20.7996]
[1747264944201,5.70613409,175.25,175.24,20.24401003]
[1747264944511,14.26085885,175.31,175.24,20.24401003]
[1747264944715,40.20978299,175.3,175.2,20.24401003]
[1747264945019,20.24401003,175.28,175.23,20.24401003]
[1747264945218,40.32007036,175.29,175.24,20.24401003]
[1747264946223,19.96805111,175.28,175.24,20.24401003]
[1747264946822,40.21206114,175.28,175.23,20.24401003]
[1747264947122,40.21206114,175.28,175.2,20.24401003]
[1747264947123,20.24401003,175.25,175.2,20.24401003]
[1747264947417,20.24401003,175.26,175.21,20.24401003]
[1747264948123,19.97146932,175.25,175.21,20.24401003]
[1747264948323,41.64229503,175.25,175.2,20.24401003]
[1747264949622,5.70613409,175.25,175.24,20.24401003]
[1747264949828,5.70515746,175.28,175.24,20.24401003]
[1747264949993,40.21206114,175.28,175.23,20.24401003]
[1747264950695,5.70515746,175.28,175.27,20.24401003]
[1747264951822,19.96507283,175.31,175.27,20.24401003]
[1747264952127,40.20908286,175.31,175.21,5.70739431]
[1747264952299,21.67029866,175.3,175.26,20.24401003]
[1747264952604,21.67029866,175.3,175.17,46.7996]
[1747264952605,20.24401003,175.28,175.17,46.7996]
[1747264952797,20.24401003,175.28,175.23,20.24401003]
[1747264953427,20.24401003,175.28,175.17,52.508276]
[1747264953616,20.24401003,175.28,175.23,20.24401003]
[1747264954008,19.96919038,175.27,175.23,20.24401003]
[1747264955028,5.70548296,175.27,175.26,20.24401003]
[1747264955217,26.28432314,175.34,175.26,20.24401003]
[1747264955218,5.7032052,175.34,175.26,20.24401003]
[1747264955423,5.7032052,175.34,175.32,20.24401003]
[1747264955627,5.7032052,175.34,175.28,20.24401003]
[1747264955811,5.7032052,175.34,175.32,20.24401003]
[1747264956005,19.95932296,175.36,175.32,20.24401003]
[1747264956534,19.95932296,175.36,175.33,20.24401003]
[1747264956736,19.95932296,175.36,175.28,20.24401003]
[1747264956915,21.66991124,175.35,175.3,20.24401003]
[1747264957117,41.5415348,175.36,175.32,20.24401003]
[1747264957620,41.5415348,175.36,175.31,20.24401003]
[1747264959239,41.5415348,175.36,175.26,20.24401003]
[1747264959240,20.24401003,175.32,175.26,20.24401003]
[1747264959440,20.24401003,175.31,175.26,20.24401003]
[1747264959735,21.67026875,175.32,175.27,20.24401003]
[1747264960037,5.7032052,175.34,175.31,20.24401003]